bitfinex/quotes_SOLUSD_20241222
["timestamp","ask_amount","ask_price","bid_price","bid_amount"]
[1734878608944,17.72967709,180.66,180.55,0.6642269]
[1734878609136,1.15967709,180.66,180.55,0.6642269]
[1734878609341,1.03418709,180.66,180.55,0.6642269]
[1734878609837,1.03418709,180.66,180.55,20.6642269]
[1734878610043,6.2686,180.67,180.56,23.776884]
[1734878610433,1.03418709,180.66,180.56,23.776884]
[1734878611839,1.03418709,180.66,180.55,20.6642269]
[1734878612213,6.2686,180.67,180.56,37.622684]
[1734878612416,6.2686,180.67,180.59,20.0]
[1734878612650,6.2686,180.76,180.64,23.776884]
[1734878613225,6.2686,180.76,180.64,335.776884]
[1734878613423,1.03418709,180.75,180.64,335.776884]
[1734878613628,1.03418709,180.75,180.64,23.776884]
[1734878613844,6.2686,180.76,180.64,23.776884]
[1734878613845,6.2686,180.76,180.67,20.0]
[1734878614337,1.03418709,180.81,180.68,23.776884]
[1734878614724,1.03418709,180.81,180.71,20.0]
[1734878615116,6.2686,180.82,180.72,23.776884]
[1734878615321,38.62867809,180.86,180.76,23.776884]
[1734878615632,1.03418709,180.85,180.73,20.0]
[1734878615840,0.12549,180.84,180.67,20.0]
[1734878616154,0.12549,180.82,180.68,20.0]
[1734878616525,1.03418709,180.81,180.65,23.776884]
[1734878616725,1.03418709,180.81,180.65,335.776884]
[1734878616931,1.03418709,180.81,180.67,23.776884]
[1734878617140,1.03418709,180.81,180.69,23.776884]
[1734878617337,1.03418709,180.84,180.7,0.12549]
[1734878617517,1.03418709,180.84,180.71,23.776884]
[1734878617941,1.03418709,180.84,180.71,37.610984]
[1734878618125,7.30278709,180.88,180.76,20.0]
[1734878618449,6.2686,180.88,180.8,20.0]
[1734878618960,6.2686,180.95,180.81,23.776884]
[1734878619254,1.03418709,180.94,180.81,23.776884]
[1734878619916,6.2686,180.95,180.85,23.776884]
[1734878620124,7.30278709,181.01,180.88,20.0]
[1734878620927,7.30278709,181.01,180.81,27.653]
[1734878620928,13.93759,181.0,180.81,41.4791]
[1734878621127,0.12549,180.98,180.85,20.0]
[1734878621345,0.12549,180.98,180.82,23.776884]
[1734878621745,1.03418709,180.99,180.85,20.0]
[1734878622063,1.03418709,181.0,180.86,23.776884]
[1734878623251,0.12549,180.99,180.85,20.0]
[1734878623452,0.12549,180.97,180.83,20.0]
[1734878623784,1.03418709,180.96,180.84,20.0]
[1734878624123,0.12549,180.95,180.8,13.8269]
[1734878624352,20.0,180.92,180.81,30.0]
[1734878624535,1.03418709,180.91,180.81,30.0]
[1734878625152,0.12549,180.9,180.74,3.8857]
[1734878625560,0.12549,180.88,180.74,3.8857]
[1734878625766,1.03418709,180.87,180.74,3.8857]
[1734878626438,1.03418709,180.87,180.72,13.8331]
[1734878626756,1.03418709,180.87,180.73,30.0]
[1734878627065,1.03418709,180.87,180.72,13.8331]
[1734878627234,1.03418709,180.87,180.73,335.776884]
[1734878628063,0.12549,180.86,180.69,6.2996]
[1734878628356,6.3615,180.88,180.71,23.776884]
[1734878628357,1.03418709,180.85,180.71,23.776884]
[1734878628860,1.03418709,180.87,180.72,0.12549]
[1734878629035,6.3615,180.88,180.74,0.12549]
[1734878629587,1.03418709,180.92,180.79,23.776884]
[1734878629949,1.03418709,180.92,180.82,20.0]
[1734878630260,1.03418709,180.93,180.82,20.0]
[1734878630459,1.03418709,180.93,180.84,20.0]
[1734878631135,1.03418709,180.93,180.84,332.0]
[1734878631335,1.03418709,180.93,180.79,23.776884]
[1734878632052,1.03418709,180.93,180.8,13.8274]
[1734878632257,1.03418709,180.93,180.84,20.0]
[1734878632428,20.0,180.89,180.7,30.0]
[1734878632766,1.03418709,180.88,180.7,30.0]
[1734878632946,1.03418709,180.88,180.7,38.39822637]
[1734878633145,0.12549,180.83,180.7,38.39822637]
[1734878633333,0.12549,180.78,180.7,8.39822637]
[1734878633536,6.4796,180.73,180.62,8.39822637]
[1734878633766,1.03418709,180.72,180.62,8.39822637]
[1734878634065,1.03418709,180.72,180.59,0.12549]
[1734878634268,1.03418709,180.72,180.58,13.844]
[1734878635090,1.03418709,180.72,180.54,13.8466]
[1734878635387,1.03418709,180.72,180.56,13.8458]
[1734878636259,1.03418709,180.72,180.57,23.776884]
[1734878636588,1.03418709,180.72,180.56,13.8458]
[1734878637247,1.03418709,180.72,180.58,13.8442]
[1734878637453,6.4796,180.73,180.59,0.12549]
[1734878637682,6.4796,180.73,180.59,24.73244954]
[1734878637955,6.4796,180.73,180.62,20.0]
[1734878638253,1.03418709,180.72,180.62,20.0]
[1734878638814,1.03418709,180.72,180.64,20.0]
[1734878638996,1.03418709,180.72,180.61,13.8418]
[1734878639485,1.03418709,180.72,180.64,20.0]
[1734878639853,1.03418709,180.78,180.64,20.0]
[1734878640055,1.03418709,180.78,180.66,23.776884]
[1734878640586,1.03418709,180.78,180.64,20.0]
[1734878640970,1.03418709,180.78,180.65,37.615784]
[1734878641307,1.03418709,180.82,180.72,20.0]
[1734878641581,1.03418709,180.84,180.72,20.0]
[1734878641949,1.03418709,180.84,180.73,13.8327]
[1734878643884,6.4796,180.86,180.76,20.0]
[1734878644081,43.81797495,181.11,180.77,20.0]
[1734878644082,1.03418709,180.9,180.77,20.0]
[1734878644407,1.03418709,180.9,180.78,0.12549]
[1734878644702,20.1408,180.98,180.81,20.0]
[1734878644996,1.03418709,180.97,180.81,20.0]
[1734878645171,0.12549,180.96,180.81,50.0]
[1734878645372,1.03418709,180.97,180.82,23.776884]
[1734878645700,1.03418709,180.97,180.82,37.602584]
[1734878646272,1.03418709,180.97,180.82,67.602584]
[1734878646474,1.03418709,180.97,180.85,20.0]
[1734878646874,13.8074,181.07,180.89,20.0]
[1734878647088,7.36128709,181.06,180.89,20.0]
[1734878647287,7.36128709,181.06,180.93,20.0]
[1734878647675,7.36128709,181.06,180.93,33.8172]
[1734878648006,1.03418709,181.09,180.97,20.0]
[1734878648170,6.3271,181.12,180.97,50.82843219]
[1734878648171,1.03418709,181.11,180.97,50.82843219]
[1734878648375,1.03418709,181.11,180.97,50.0]
[1734878648796,1.03418709,181.11,181.01,20.0]
[1734878648967,6.3271,181.12,181.01,20.0]
[1734878649170,1.69841399,181.17,181.05,20.0]
[1734878649697,1.69841399,181.17,181.01,30.0]
[1734878650277,0.6642269,181.17,181.05,20.0]
[1734878650477,1.03418709,181.16,181.05,30.0]
[1734878650777,0.12549,181.15,181.05,30.0]
[1734878651173,1.03418709,181.16,181.08,20.0]
[1734878651400,0.6642269,181.17,181.08,20.0]
[1734878651804,0.6642269,181.17,181.05,43.8075]
[1734878652598,0.6642269,181.17,181.06,23.776884]
[1734878652809,0.6642269,181.17,181.07,30.0]
[1734878653708,0.6642269,181.17,181.11,20.0]
[1734878654006,0.6642269,181.17,181.15,20.0]
[1734878654188,0.6642269,181.17,181.16,23.776884]
[1734878654614,0.6642269,181.17,181.14,20.0]
[1734878654776,0.6642269,181.17,181.11,30.0]
[1734878655278,0.6642269,181.17,181.15,20.0]
[1734878655473,0.6642269,181.17,181.12,30.0]
[1734878657184,0.6642269,181.17,181.13,23.776884]
[1734878657397,0.6642269,181.17,181.14,30.0]
[1734878659318,0.6642269,181.17,181.03,13.8093]
[1734878659487,0.6642269,181.17,181.05,30.0]
[1734878660202,0.12549,181.16,181.05,30.0]
[1734878660415,1.15967709,181.16,181.05,30.0]
[1734878660719,0.12549,181.09,180.92,3.9269]
[1734878660894,1.15967709,181.09,180.93,30.0]
[1734878661101,1.15967709,181.09,180.92,3.9269]
[1734878661696,1.15967709,181.09,180.85,83.0755212]
[1734878661697,0.12549,181.07,180.87,13.8218]
[1734878661893,1.03418709,181.07,180.88,30.0]
[1734878662193,1.03418709,181.07,180.87,13.8218]
[1734878662395,0.12549,181.06,180.88,0.12549]
[1734878662703,1.03418709,181.05,180.88,0.95424242]
[1734878662916,0.12549,181.07,180.88,0.12549]
[1734878663100,13.8054,181.09,180.87,84.35051173]
[1734878663101,21.03418709,181.06,180.87,84.35051173]
[1734878663295,21.03418709,181.06,180.87,83.5218]
[1734878663623,23.902374,181.05,180.87,83.5218]
[1734878663797,1.03418709,181.04,180.87,13.8218]
[1734878663991,29.921074,181.03,180.85,3.9231]
[1734878664218,0.12549,181.01,180.85,3.9231]
[1734878664723,0.12549,180.95,180.79,35.20585181]
[1734878664890,1.15967709,180.95,180.8,30.0]
[1734878665530,1.15967709,180.95,180.79,13.8275]
[1734878665827,1.15967709,180.95,180.69,3.7684]
[1734878665828,0.12549,180.9,180.69,3.7684]
[1734878666030,1.15967709,180.9,180.72,30.0]
[1734878666345,1.15967709,180.9,180.69,3.7684]
[1734878666500,0.12549,180.88,180.71,13.8337]
[1734878666826,1.15967709,180.88,180.71,13.8337]
[1734878667329,23.776884,180.89,180.71,13.8337]
[1734878667494,7.17837709,180.88,180.69,3.7684]
[1734878667703,7.17837709,180.88,180.7,23.902374]
[1734878667902,7.17837709,180.88,180.69,4.59808417]
[1734878668630,7.17837709,180.88,180.7,0.12549]
[1734878668857,7.05288709,180.88,180.7,0.12549]
[1734878669127,6.0187,180.88,180.72,41.62609]
[1734878669309,1.03418709,180.87,180.76,20.0]
[1734878669929,6.0187,180.88,180.8,20.0]
[1734878670134,1.03418709,180.93,180.8,20.0]
[1734878670504,0.12549,180.92,180.8,20.0]
[1734878670718,1.03418709,180.93,180.8,20.0]
[1734878671039,1.03418709,180.94,180.79,0.12549]
[1734878671192,1.03418709,180.94,180.73,0.82917692]
[1734878671391,1.03418709,180.94,180.72,55.3342]
[1734878671613,0.12549,180.93,180.75,0.12549]
[1734878672225,1.03418709,180.94,180.75,0.9548282]
[1734878672426,6.0187,180.95,180.78,0.12549]
[1734878672662,1.03418709,180.94,180.82,23.776884]
[1734878672863,1.03418709,180.94,180.81,20.0]
[1734878673253,1.03418709,180.94,180.82,23.776884]
[1734878673439,1.03418709,180.94,180.8,20.0]
[1734878673644,0.12549,180.93,180.8,20.0]
[1734878673834,1.03418709,180.92,180.8,20.0]
[1734878674547,23.902374,180.91,180.73,13.8324]
[1734878674742,23.902374,180.89,180.66,27.6751]
[1734878674937,23.902374,180.87,180.64,13.8396]
[1734878675168,0.12549,180.85,180.64,14.66950515]
[1734878675364,1.03418709,180.86,180.65,0.12549]
[1734878675566,23.776884,180.89,180.67,0.12549]
[1734878675739,1.03418709,180.88,180.69,0.12549]
[1734878675938,1.03418709,180.88,180.71,0.12549]
[1734878676396,1.03418709,180.91,180.71,0.12549]
[1734878676734,0.12549,180.9,180.78,20.0]
[1734878676935,0.12549,180.88,180.78,20.0]
[1734878677349,0.12549,180.88,180.76,20.0]
[1734878677552,1.03418709,180.87,180.73,13.8325]
[1734878677957,0.12549,180.86,180.69,13.8351]
[1734878678156,1.03418709,180.85,180.69,13.8351]
[1734878678572,24.81107109,180.91,180.7,0.12549]
[1734878678874,14.85378709,180.91,180.72,20.0]
[1734878679045,1.03418709,180.91,180.72,20.82944941]
[1734878679367,1.03418709,180.91,180.78,20.0]
[1734878679675,1.03418709,180.94,180.78,20.0]
[1734878679856,1.03418709,180.94,180.67,27.6747]
[1734878679857,0.12549,180.93,180.71,23.776884]
[1734878680032,1.03418709,180.92,180.71,23.776884]
[1734878680443,0.12549,180.91,180.71,23.776884]
[1734878680670,0.12549,180.89,180.72,30.0]
[1734878680872,0.12549,180.89,180.72,13.8335]
[1734878681174,0.12549,180.89,180.75,20.0]
[1734878681476,1.03418709,180.9,180.79,20.0]
[1734878681660,1.03418709,180.94,180.79,20.0]
[1734878682583,16.73549,180.93,180.79,20.0]
[1734878682748,23.902374,180.91,180.72,13.8335]
[1734878683078,23.902374,180.91,180.67,30.00718235]
[1734878683079,0.12549,180.87,180.67,30.00718235]
[1734878683258,1.15967709,180.87,180.69,30.0]
[1734878683458,1.03418709,180.87,180.71,0.12549]
[1734878683666,1.03418709,180.9,180.71,0.12549]
[1734878683989,0.12549,180.87,180.69,30.0]
[1734878684284,1.15967709,180.87,180.69,0.12549]
[1734878684451,1.15967709,180.87,180.71,20.0]
[1734878684649,1.15967709,180.87,180.73,20.0]
[1734878684852,1.03418709,180.87,180.73,20.0]
[1734878685046,37.596484,180.91,180.73,20.0]
[1734878685047,23.902374,180.89,180.73,20.0]
[1734878685261,23.902374,180.87,180.7,13.835]
[1734878685451,0.12549,180.85,180.7,13.835]
[1734878685662,6.0508,180.84,180.64,0.82974421]
[1734878685857,0.12549,180.83,180.66,13.8375]
[1734878686064,0.12549,180.83,180.67,0.82977872]
[1734878686658,0.12549,180.83,180.68,13.8366]
[1734878686953,0.12549,180.83,180.69,0.82970474]
[1734878687154,7.08498709,180.84,180.71,20.0]
[1734878687363,6.0508,180.84,180.71,20.82955316]
[1734878687571,6.0508,180.84,180.71,20.0]
[1734878687772,6.0508,180.84,180.75,20.0]
[1734878688253,1.03418709,180.83,180.75,20.0]
[1734878689577,1.03418709,180.83,180.69,14.66539109]
[1734878689778,0.12549,180.82,180.69,13.8357]
[1734878689982,0.12549,180.82,180.66,13.8381]
[1734878690967,0.12549,180.82,180.63,13.8404]
[1734878691282,0.12549,180.82,180.66,23.776884]
[1734878692182,0.12549,180.82,180.69,20.0]
[1734878692381,0.12549,180.78,180.57,6.5184]
[1734878692594,16.73549,180.75,180.59,30.0]
[1734878692761,23.69498709,180.74,180.59,30.0]
[1734878693453,0.12549,180.73,180.58,13.8442]
[1734878694259,0.12549,180.73,180.61,20.0]
[1734878696893,7.08498709,180.74,180.61,20.0]
[1734878697670,7.08498709,180.74,180.62,23.776884]
[1734878698563,7.08498709,180.74,180.65,20.0]
[1734878699266,7.08498709,180.74,180.62,23.776884]
[1734878699267,7.08498709,180.74,180.62,20.0]
[1734878699475,13.95819,180.73,180.61,20.0]
[1734878699800,1.03418709,180.72,180.61,20.0]
[1734878701274,1.03418709,180.72,180.63,20.0]
[1734878701473,1.03418709,180.73,180.63,20.0]
[1734878702031,1.03418709,180.73,180.6,20.0]
[1734878702176,1.03418709,180.73,180.62,23.776884]
[1734878702381,1.03418709,180.73,180.65,20.0]
[1734878702973,6.0508,180.74,180.65,20.0]
[1734878703192,1.03418709,180.73,180.65,20.0]
[1734878703494,1.03418709,180.73,166.53,0.96034323]
[1734878703495,1.03418709,180.73,180.56,33.8458]
[1734878703694,1.03418709,180.73,180.57,23.776884]
[1734878703865,17.64418709,180.73,180.57,23.776884]
[1734878704276,17.64418709,180.73,180.59,23.776884]
[1734878704464,1.03418709,180.73,180.6,0.12549]
[1734878704664,7.08498709,180.74,180.61,23.776884]
[1734878704864,7.08498709,180.74,180.64,20.0]
[1734878705491,1.03418709,180.76,180.67,23.776884]
[1734878705708,1.03418709,180.79,180.7,20.0]
[1734878705882,1.03418709,180.78,180.67,0.82985315]
[1734878706195,1.03418709,180.78,180.69,20.0]
[1734878706436,1.03418709,180.78,180.66,23.776884]
[1734878707083,1.03418709,180.78,180.65,13.8389]
[1734878707287,1.03418709,180.78,180.66,23.776884]
[1734878707472,1.03418709,180.78,180.69,20.0]
[1734878707675,1.03418709,180.79,180.7,20.0]
[1734878707989,1.03418709,180.79,180.69,20.0]
[1734878708186,0.12549,180.78,180.59,13.8429]
[1734878708385,0.12549,180.76,180.59,13.8429]
[1734878708590,0.12549,180.74,180.55,14.5103269]
[1734878708801,6.5545,180.71,180.55,14.5103269]
[1734878709114,0.12549,180.69,180.55,0.6642269]
[1734878709331,21.03418709,180.68,180.55,0.6642269]
[1734878709501,16.73549,180.67,180.55,0.6642269]
[1734878709822,1.03418709,180.66,180.55,0.6642269]
[1734878710632,1.03418709,180.67,180.55,0.6642269]
[1734878711040,0.12549,180.66,180.55,0.6642269]
[1734878711276,0.12549,180.64,180.55,0.6642269]
[1734878711548,6.67999,180.62,180.55,0.6642269]
[1734878711761,1.03418709,180.61,180.55,0.6642269]
[1734878712532,0.12549,180.6,180.55,0.6642269]
[1734878712744,1.03418709,180.59,180.55,0.6642269]
[1734878712930,20.12549,180.58,180.55,0.6642269]
[1734878713122,2.1268,180.55,180.38,13.8588]
[1734878713324,1.03418709,180.54,180.38,13.8588]
[1734878713509,1.03418709,180.54,180.38,14.68991233]
[1734878713839,1.03418709,180.54,180.38,13.8588]
[1734878714353,2.1268,180.55,180.39,0.95654827]
[1734878714844,16.61,180.67,180.39,0.95654827]
[1734878715153,27.6738,180.68,180.43,0.12549]
[1734878715440,16.61,180.71,180.5,20.0]
[1734878715943,0.12549,180.7,180.42,20.0]
[1734878716220,0.12549,180.7,180.5,20.0]
[1734878716621,23.776884,180.67,180.5,20.0]
[1734878716819,36.61,180.68,180.5,20.0]
[1734878717015,36.61,180.68,180.42,13.8558]
[1734878717016,0.12549,180.67,180.42,13.8558]
[1734878717326,20.12549,180.62,180.41,23.776884]
[1734878717619,41.5143,180.66,180.42,0.12549]
[1734878717840,5.5023,180.65,180.42,0.12549]
[1734878718043,0.12549,180.64,180.44,0.12549]
[1734878718242,5.5023,180.65,180.46,23.902374]
[1734878718451,13.8396,180.64,180.49,20.0]
[1734878718746,0.12549,180.63,180.49,20.0]
[1734878719829,0.12549,180.63,180.41,0.83077548]
[1734878719830,0.12549,180.58,180.41,13.8571]
[1734878720044,20.0,180.59,180.41,14.68806724]
[1734878720232,13.8412,180.62,180.42,0.12549]
[1734878720626,27.6808,180.62,180.44,0.12549]
[1734878721030,13.8412,180.62,180.44,20.12549]
[1734878721238,13.8412,180.62,180.48,20.0]
[1734878721612,0.12549,180.61,180.48,20.0]
[1734878722141,13.8412,180.62,180.48,20.0]
[1734878722529,0.12549,180.61,180.48,20.0]
[1734878723693,20.12549,180.56,180.32,91.13453401]
[1734878723942,20.12549,180.56,180.35,31.6373]
[1734878724143,0.12549,180.54,180.35,31.6373]
[1734878724518,0.12549,180.54,180.38,13.859]
[1734878724840,13.97329,180.54,180.39,30.0]
[1734878725047,5.5023,180.55,180.39,30.0]
[1734878725260,5.5023,180.55,180.4,0.12549]
[1734878725466,5.5023,180.55,180.42,20.0]
[1734878725860,5.5023,180.55,180.47,20.0]
[1734878726042,5.5023,180.6,180.48,23.776884]
[1734878726229,5.5023,180.6,180.51,20.0]
[1734878726560,5.5023,180.65,180.55,20.0]
[1734878726768,13.8571,180.66,180.59,20.0]
[1734878727125,16.61,180.83,180.61,20.0]
[1734878727423,16.61,180.83,180.62,23.776884]
[1734878727634,16.61,180.83,180.65,20.0]
[1734878728229,16.73549,180.83,180.65,20.0]
[1734878728628,16.61,180.81,180.58,6.2643]
[1734878728988,0.12549,180.79,180.52,20.1125]
[1734878729260,0.12549,180.79,180.53,23.776884]
[1734878729865,20.0,180.73,180.52,20.1125]
[1734878730037,0.12549,180.7,180.52,20.1125]
[1734878730243,5.62779,180.67,180.48,13.8513]
[1734878731066,5.5023,180.67,180.51,13.8496]
[1734878731262,5.5023,180.67,180.52,0.95601773]
[1734878731569,19.3358,180.72,180.52,0.95601773]
[1734878731764,5.5023,180.72,180.56,20.0]
[1734878732066,5.5023,180.72,180.61,43.776884]
[1734878732244,5.5023,180.79,180.61,43.776884]
[1734878732825,5.5023,180.79,180.66,20.0]
[1734878733050,5.5023,180.79,180.67,23.776884]
[1734878733233,35.31035234,181.03,180.7,20.0]
[1734878733234,22.138261,180.83,180.7,20.0]
[1734878734231,19.3251,180.86,180.7,20.0]
[1734878734431,27.636631,180.86,180.75,23.776884]
[1734878734834,5.5023,180.86,180.75,23.776884]
[1734878735033,0.12549,180.85,180.68,23.776884]
[1734878735343,0.12549,180.85,180.71,20.0]
[1734878735575,13.94909,180.85,180.68,23.776884]
[1734878736061,0.12549,180.83,180.67,20.0]
[1734878736271,0.12549,180.83,180.68,20.0]
[1734878736507,13.8259,180.82,180.68,20.0]
[1734878736672,23.776884,180.85,180.69,20.0]
[1734878737165,0.12549,180.84,180.69,20.0]
[1734878737455,0.12549,180.81,180.68,20.0]
[1734878738559,23.776884,180.85,180.68,20.0]
[1734878738766,5.5023,180.86,180.69,23.776884]
[1734878738931,5.5023,180.86,180.72,20.0]
[1734878740140,0.12549,180.83,180.64,6.4788]
[1734878740343,0.12549,180.83,180.68,20.0]
[1734878740569,0.12549,180.83,180.72,20.0]
[1734878740746,13.8243,180.84,180.72,20.0]
[1734878740945,5.5023,180.86,180.72,20.0]
[1734878742142,13.94939,180.85,180.72,20.0]
[1734878742575,5.5023,180.86,180.72,20.0]
[1734878743179,5.5023,180.86,180.73,23.776884]
[1734878743348,5.5023,180.86,180.76,20.0]
[1734878743747,22.129911,180.9,180.76,20.0]
[1734878744012,5.5023,180.92,180.76,20.0]
[1734878744174,16.61,180.89,180.76,20.0]
[1734878744544,16.61,180.89,180.74,3.7917]
[1734878745678,16.61,180.89,180.76,20.0]
[1734878746177,16.61,180.91,180.77,23.776884]
[1734878746849,27.630128,180.92,180.8,20.0]
[1734878747046,16.61,180.96,180.84,20.0]
[1734878747359,14.4771269,180.99,180.84,20.0]
[1734878747753,36.5961999,180.99,180.85,23.776884]
[1734878747959,14.4771269,180.99,180.85,23.776884]
[1734878748185,31.0871269,180.99,180.85,23.776884]
[1734878748691,14.4771269,180.99,180.85,23.776884]
[1734878749189,0.6642269,180.99,180.85,23.776884]
[1734878749395,0.6642269,180.99,180.88,20.0]
[1734878750268,0.6642269,180.99,180.92,20.0]
[1734878750655,0.6642269,180.99,180.86,3.7917]
[1734878750858,0.12549,180.98,180.86,3.7917]
[1734878751069,0.6642269,180.99,180.86,3.7917]
[1734878751777,0.6642269,180.99,180.87,23.776884]
[1734878752285,0.6642269,180.99,180.91,23.776884]
[1734878752687,0.6642269,180.99,180.94,20.0]
[1734878753069,0.6642269,180.99,180.87,13.822]
[1734878753270,0.6642269,180.99,180.91,20.0]
[1734878753474,0.6642269,180.99,180.86,3.7917]
[1734878754491,0.12549,180.98,180.84,6.2797]
[1734878754987,0.6642269,180.99,180.84,20.1039]
[1734878755560,0.6642269,180.99,180.85,0.12549]
[1734878756383,0.6642269,180.99,180.88,23.776884]
[1734878756561,0.6642269,180.99,180.91,20.0]
[1734878756759,0.6642269,180.99,180.88,23.776884]
[1734878756988,0.6642269,180.99,180.87,23.776884]
[1734878757176,0.6642269,180.99,180.9,20.0]
[1734878758187,0.12549,180.98,180.74,97.3635]
[1734878758390,0.12549,180.94,180.81,30.0]
[1734878758590,0.12549,180.92,180.74,10.0714]
[1734878758797,0.12549,180.9,180.74,10.0714]
[1734878758960,0.12549,180.88,180.74,3.7917]
[1734878759368,16.73549,180.88,180.69,6.2797]
[1734878760072,5.0023,180.85,180.69,6.2797]
[1734878760272,0.12549,180.84,180.69,6.2797]
[1734878760477,0.12549,180.81,180.64,6.2797]
[1734878760868,16.61,180.82,180.64,6.2797]
[1734878761068,0.12549,180.79,180.64,6.2797]
[1734878761380,0.12549,180.8,180.61,3.7917]
[1734878761586,0.12549,180.77,180.61,3.7917]
[1734878761785,0.12549,180.77,180.58,6.4379]
[1734878761786,40.512374,180.77,180.58,6.4379]
[1734878761968,0.12549,180.75,180.58,6.4379]
[1734878762370,40.512374,180.75,180.58,6.4379]
[1734878762582,5.12779,180.71,180.54,3.9392]
[1734878762774,5.12779,180.71,180.54,17.7862]
[1734878762964,5.0023,180.71,180.55,0.12549]
[1734878763166,47.6367,180.92,180.55,0.12549]
[1734878763167,5.0023,180.77,180.57,0.12549]
[1734878763386,5.0023,180.86,180.59,69.82549]
[1734878763595,5.0023,180.86,180.63,0.12549]
[1734878763807,5.0023,180.86,180.63,0.95531915]
[1734878764095,5.0023,180.86,180.7,23.776884]
[1734878764298,5.0023,180.86,180.73,20.0]
[1734878764466,5.0023,180.92,180.77,20.0]
[1734878764869,13.8205,180.89,180.7,20.0]
[1734878765064,0.12549,180.88,180.7,20.0]
[1734878765292,30.4305,180.89,180.7,20.0]
[1734878765685,0.12549,180.88,180.69,23.6065]
[1734878766008,0.12549,180.86,180.69,23.6065]
[1734878766179,13.822,180.87,180.7,23.776884]
[1734878766579,13.8195,180.91,180.73,20.0]
[1734878766776,0.12549,180.88,180.73,20.0]
[1734878767011,0.12549,180.88,180.69,3.6065]
[1734878767502,16.73549,180.88,180.69,3.6065]
[1734878767803,23.902374,180.88,180.7,23.776884]
[1734878768195,23.902374,180.86,180.69,3.6065]
[1734878768567,23.902374,180.86,180.68,20.0]
[1734878768768,23.902374,180.82,180.62,9.9799]
[1734878768991,40.512374,180.82,180.62,9.9799]
[1734878769401,23.902374,180.82,180.62,9.9799]
[1734878769604,20.0,180.81,180.63,13.8404]
[1734878769903,0.12549,180.8,180.66,20.0]
[1734878770314,27.6441,180.87,180.7,20.0]
[1734878770604,27.6441,180.87,180.67,23.776884]
[1734878770605,0.12549,180.82,180.67,23.776884]
[1734878770770,0.12549,180.82,180.62,23.8204]
[1734878770974,0.12549,180.82,180.65,20.0]
[1734878771175,0.12549,180.82,180.66,20.0]
[1734878771395,0.12549,180.78,180.62,9.9799]
[1734878771598,5.12779,180.78,180.62,3.6065]
[1734878771915,40.386884,180.82,180.62,3.6065]
[1734878771916,5.0023,180.83,180.63,0.95559378]
[1734878772088,5.0023,180.83,180.62,17.4476]
[1734878772293,0.12549,180.82,180.62,17.4476]
[1734878772608,0.12549,180.82,180.65,20.0]
[1734878772778,0.12549,180.82,180.66,23.776884]
[1734878773100,0.12549,180.82,180.69,20.0]
[1734878773303,27.142201,180.83,180.69,20.0]
[1734878773476,5.0023,180.83,180.69,20.0]
[1734878773810,65.380074,180.82,180.62,3.6065]
[1734878773978,0.12549,180.8,180.62,3.6065]
[1734878774182,0.12549,180.78,180.62,3.6065]
[1734878774508,13.8259,180.82,180.63,14.67056388]
[1734878774682,27.141463,180.83,180.64,69.82549]
[1734878774882,5.0023,180.83,180.66,0.12549]
[1734878775082,5.0023,180.83,180.67,20.8297047]
[1734878775301,5.0023,180.83,180.71,20.0]
[1734878775481,5.0023,180.83,180.72,20.0]
[1734878775677,52.44088201,180.9,180.76,20.0]
[1734878775901,22.131698,180.88,180.76,20.0]
[1734878776219,16.61,180.89,180.76,20.0]
[1734878777585,16.61,180.89,180.78,20.0]